bitfinex/quotes_BTCUSD_20250902
["timestamp","ask_amount","ask_price","bid_price","bid_amount"]
[1756854071710,0.8769612,111420.0,111410.0,0.18478709]
[1756854072667,0.69746022,111420.0,111410.0,0.18478709]
[1756854073785,0.8769612,111420.0,111410.0,0.18478709]
[1756854074230,0.69746022,111420.0,111410.0,0.18478709]
[1756854076989,0.8769612,111420.0,111410.0,0.18478709]
[1756854077394,0.8769612,111420.0,111410.0,0.15551]
[1756854077611,0.8769612,111420.0,111410.0,0.33502709]
[1756854077813,0.8769612,111420.0,111410.0,0.33706709]
[1756854078722,0.69946022,111420.0,111410.0,0.33706709]
[1756854078926,0.8799612,111420.0,111410.0,0.33706709]
[1756854079745,0.53113161,111420.0,111410.0,0.33706709]
[1756854079981,0.003,111420.0,111410.0,0.33706709]
[1756854080205,0.53113161,111420.0,111410.0,0.33706709]
[1756854080479,0.53013161,111420.0,111410.0,0.33706709]
[1756854080687,0.18250098,111420.0,111410.0,0.33706709]
[1756854080889,0.53113161,111420.0,111410.0,0.33706709]
[1756854081275,0.35163063,111420.0,111410.0,0.33706709]
[1756854081689,0.53113161,111420.0,111410.0,0.33706709]
[1756854083221,0.35163063,111420.0,111410.0,0.33706709]
[1756854083424,0.53113161,111420.0,111410.0,0.33706709]
[1756854085082,0.35163063,111420.0,111410.0,0.33706709]
[1756854085292,0.53113161,111420.0,111410.0,0.33706709]
[1756854085813,0.53113161,111420.0,111410.0,0.33502709]
[1756854085997,0.87976224,111420.0,111410.0,0.33502709]
[1756854086380,0.87976224,111420.0,111400.0,0.25179369]
[1756854086557,0.87976224,111420.0,111410.0,0.15204]
[1756854086558,0.53113161,111420.0,111410.0,0.15204]
[1756854086820,0.87976224,111420.0,111410.0,0.15204]
[1756854087411,0.87876224,111420.0,111410.0,0.15204]
[1756854087611,0.87976224,111420.0,111410.0,0.15204]
[1756854087809,0.17951709,111410.0,111400.0,0.06328686]
[1756854088047,0.52814772,111410.0,111400.0,0.21536686]
[1756854088230,0.86814772,111410.0,111400.0,0.06328686]
[1756854088447,0.86814772,111410.0,111400.0,4.686e-05]
[1756854088658,0.92718831,111410.0,111400.0,0.15208686]
[1756854090355,0.89747234,111410.0,111400.0,0.15208686]
[1756854090558,0.54884171,111410.0,111400.0,0.15208686]
[1756854090768,0.51951709,111410.0,111400.0,0.33671007]
[1756854090972,0.68863063,111410.0,111400.0,0.33671007]
[1756854091179,0.8771245,111410.0,111400.0,0.33671007]
[1756854092484,0.69760741,111410.0,111400.0,0.33671007]
[1756854093107,0.8771245,111410.0,111400.0,0.33671007]
[1756854093296,0.8771245,111410.0,111400.0,0.15717686]
[1756854093511,0.8771245,111410.0,111400.0,0.15725686]
[1756854094625,0.8781245,111410.0,111400.0,0.33679007]
[1756854095257,0.8781245,111410.0,111400.0,0.15725686]
[1756854095529,0.8801245,111410.0,111400.0,0.15725686]
[1756854095760,0.8781245,111410.0,111400.0,0.15725686]
[1756854096051,0.8801245,111410.0,111400.0,0.15725686]
[1756854096261,0.8791245,111410.0,111400.0,0.33679007]
[1756854096671,0.8801245,111410.0,111400.0,0.33679007]
[1756854104036,0.8801245,111410.0,111400.0,0.15725686]
[1756854104266,0.8801245,111410.0,111400.0,0.15192686]
[1756854104484,1.03108108,111410.0,111400.0,0.15192686]
[1756854108854,1.00136511,111410.0,111400.0,0.15192686]
[1756854109433,0.97204049,111410.0,111400.0,0.15726686]
[1756854111669,0.62340986,111410.0,111400.0,0.15726686]
[1756854111871,0.97204049,111410.0,111400.0,0.15726686]
[1756854113224,0.97204049,111410.0,111400.0,0.00538686]
[1756854113426,0.97204049,111410.0,111400.0,0.15184686]
[1756854113588,0.97204049,111410.0,111400.0,4.686e-05]
[1756854113792,0.68245045,111410.0,111400.0,0.15184686]
[1756854113997,1.18284108,111410.0,111400.0,4.686e-05]
[1756854121766,1.20983162,111410.0,111400.0,4.686e-05]
[1756854124836,1.18011565,111410.0,111400.0,0.00538686]
[1756854124980,0.99903103,111410.0,111400.0,0.00538686]
[1756854125871,0.97204049,111410.0,111400.0,0.00538686]
[1756854130709,0.62340986,111410.0,111400.0,0.00538686]
[1756854130954,0.97204049,111410.0,111400.0,0.00538686]
[1756854131735,0.97204049,111410.0,111400.0,0.00328686]
[1756854132694,0.97204049,111410.0,111400.0,0.00535686]
[1756854132897,0.97204049,111410.0,111400.0,4.686e-05]
[1756854133447,0.62340986,111410.0,111400.0,0.00514686]
[1756854133650,0.97204049,111410.0,111400.0,0.00514686]
[1756854139497,1.32088074,111410.0,111400.0,0.00514686]
[1756854142739,1.34787077,111410.0,111400.0,0.00514686]
[1756854145248,1.34787077,111410.0,111400.0,4.686e-05]
[1756854145579,1.40691136,111410.0,111400.0,4.686e-05]
[1756854145796,1.42632591,111410.0,111400.0,4.686e-05]
[1756854146172,1.57696591,111410.0,111400.0,4.686e-05]
[1756854146721,1.57996591,111410.0,111400.0,4.686e-05]
[1756854147526,1.57796591,111410.0,111400.0,4.686e-05]
[1756854148341,1.57696591,111410.0,111400.0,4.686e-05]
[1756854148890,1.57496591,111410.0,111400.0,4.686e-05]
[1756854149115,1.57596591,111410.0,111400.0,4.686e-05]
[1756854149244,1.57496591,111410.0,111400.0,4.686e-05]
[1756854149608,1.57596591,111410.0,111400.0,4.686e-05]
[1756854149838,1.57796591,111410.0,111400.0,4.686e-05]
[1756854150437,1.55855136,111410.0,111400.0,4.686e-05]
[1756854152249,1.52922674,111410.0,111400.0,0.00307686]
[1756854153273,1.37758674,111410.0,111400.0,0.00307686]
[1756854155747,1.34787077,111410.0,111400.0,0.00514686]
[1756854160088,1.34787077,111410.0,111400.0,0.00307686]
[1756854161361,1.49919077,111410.0,111400.0,0.00307686]
[1756854162397,1.92635703,111410.0,111400.0,4.686e-05]
[1756854162606,1.94729585,111410.0,111400.0,4.686e-05]
[1756854166743,1.97786847,111410.0,111400.0,4.686e-05]
[1756854169367,1.97786489,111410.0,111400.0,4.686e-05]
[1756854173261,1.97155167,111410.0,111400.0,4.686e-05]
[1756854174070,3.02406682,111410.0,111400.0,4.686e-05]
[1756854174396,3.04895581,111410.0,111400.0,4.686e-05]
[1756854175051,3.04695581,111410.0,111400.0,4.686e-05]
[1756854175264,3.1650913,111410.0,111400.0,4.686e-05]
[1756854175466,3.1680913,111410.0,111400.0,4.686e-05]
[1756854176134,2.12188498,111410.0,111400.0,4.686e-05]
[1756854176342,2.01306722,111410.0,111400.0,4.686e-05]
[1756854176714,2.01006722,111410.0,111400.0,4.686e-05]
[1756854177115,2.01306722,111410.0,111400.0,4.686e-05]
[1756854178276,1.98074418,111410.0,111400.0,4.686e-05]
[1756854179393,1.95102821,111410.0,111400.0,4.686e-05]
[1756854179594,2.01306248,111410.0,111400.0,4.686e-05]
[1756854179828,1.98334651,111410.0,111400.0,4.686e-05]
[1756854180064,2.0752625,111410.0,111400.0,4.686e-05]
[1756854180714,1.98334651,111410.0,111400.0,4.686e-05]
[1756854183199,1.95102347,111410.0,111400.0,4.686e-05]
[1756854183428,1.98334651,111410.0,111400.0,4.686e-05]
[1756854185416,1.95102347,111410.0,111400.0,4.686e-05]
[1756854185650,1.79978347,111410.0,111400.0,0.00513686]
[1756854185863,2.04277946,111410.0,111400.0,0.00513686]
[1756854186066,0.90465715,111410.0,111400.0,0.00513686]
[1756854186286,1.95086347,111410.0,111400.0,0.00513686]
[1756854188847,1.95090545,111410.0,111400.0,0.00513686]
[1756854191181,1.98322849,111410.0,111400.0,0.00513686]
[1756854192206,2.00006705,111410.0,111400.0,0.00513686]
[1756854192808,2.09198304,111410.0,111400.0,4.686e-05]
[1756854193239,2.00006705,111410.0,111400.0,4.686e-05]
[1756854193433,2.34880249,111410.0,111400.0,4.686e-05]
[1756854193612,2.00006705,111410.0,111400.0,4.686e-05]
[1756854194189,2.02432316,111410.0,111400.0,4.686e-05]
[1756854195638,2.01801099,111410.0,111400.0,4.686e-05]
[1756854195848,2.02432756,111410.0,111400.0,4.686e-05]
[1756854198094,2.07658191,111410.0,111400.0,4.686e-05]
[1756854198267,2.06760513,111410.0,111400.0,4.686e-05]
[1756854198687,2.01535078,111410.0,111400.0,4.686e-05]
[1756854200462,2.01535078,111410.0,111400.0,0.00527686]
[1756854200870,2.01535078,111410.0,111400.0,0.00313686]
[1756854201498,1.66691242,111410.0,111400.0,0.00313686]
[1756854202011,1.66691242,111410.0,111400.0,0.00527686]
[1756854202216,1.70582749,111410.0,111400.0,0.00527686]
[1756854202619,1.69662897,111410.0,111400.0,0.00527686]
[1756854205169,1.54550897,111410.0,111400.0,0.00527686]
[1756854205367,1.69650897,111410.0,111400.0,0.00527686]
[1756854205564,1.34762499,111410.0,111400.0,0.00527686]
[1756854206580,1.41090499,111410.0,111400.0,0.00527686]
[1756854206905,1.41993388,111410.0,111400.0,0.00527686]
[1756854207322,1.76881786,111410.0,111400.0,0.00527686]
[1756854208052,1.74940343,111410.0,111400.0,4.686e-05]
[1756854208289,1.76882098,111410.0,111400.0,0.00313686]
[1756854208493,1.76882098,111410.0,111400.0,0.00527686]
[1756854208669,1.79172603,111410.0,111400.0,0.00527686]
[1756854209059,1.79172603,111410.0,111400.0,4.686e-05]
[1756854209411,1.75940299,111410.0,111400.0,4.686e-05]
[1756854209650,1.79176597,111410.0,111400.0,4.686e-05]
[1756854210577,1.07109296,111410.0,111400.0,0.00313686]
[1756854210784,1.76886092,111410.0,111400.0,0.00313686]
[1756854212059,1.76886092,111410.0,111400.0,4.686e-05]
[1756854212810,1.7688654,111410.0,111400.0,4.686e-05]
[1756854213241,1.73650242,111410.0,111400.0,4.686e-05]
[1756854215797,1.82841841,111410.0,111400.0,4.686e-05]
[1756854218712,1.73650242,111410.0,111400.0,0.00325686]
[1756854220581,1.73650367,111410.0,111400.0,0.00325686]
[1756854223530,1.73650367,111410.0,111400.0,0.00521686]
[1756854226056,1.73650367,111410.0,111400.0,0.00325686]
[1756854226695,1.73650455,111410.0,111400.0,0.00325686]
[1756854227070,1.82842054,111410.0,111400.0,0.00325686]
[1756854228185,1.82842054,111410.0,111400.0,4.686e-05]
[1756854230222,1.73650455,111410.0,111400.0,4.686e-05]
[1756854233501,1.73653087,111410.0,111400.0,4.686e-05]
[1756854234094,0.54047203,111400.0,111390.0,0.00321]
[1756854234327,0.51958157,111370.0,111360.0,0.07354631]
[1756854234553,0.86846555,111370.0,111360.0,0.09819631]
[1756854234781,0.92475266,111370.0,111360.0,0.10140631]
[1756854235005,0.95446921,111370.0,111360.0,0.10140631]
[1756854235719,0.95446921,111370.0,111360.0,0.02990686]
[1756854236109,0.95915452,111370.0,111360.0,0.02990686]
[1756854236328,0.95915452,111370.0,111360.0,0.03190686]
[1756854237811,0.95915452,111370.0,111360.0,0.02790686]
[1756854238051,0.92943797,111370.0,111360.0,0.02890686]
[1756854238555,0.92943797,111370.0,111360.0,0.02790686]
[1756854239224,0.93043797,111370.0,111360.0,0.02790686]
[1756854240488,0.58155399,111370.0,111360.0,0.02790686]
[1756854240687,0.55226568,111370.0,111360.0,0.02790686]
[1756854241051,0.55226568,111370.0,111360.0,0.20750456]
[1756854241663,0.55226568,111370.0,111360.0,0.02790686]
[1756854243914,0.90114966,111370.0,111360.0,0.02790686]
[1756854255677,0.90114966,111370.0,111360.0,0.17882686]
[1756854258411,0.90114966,111370.0,111360.0,0.15613686]
[1756854263467,0.90114966,111370.0,111360.0,0.00325686]
[1756854263681,0.90124351,111370.0,111360.0,0.15096686]
[1756854263858,1.25022134,111370.0,111360.0,0.15096686]
[1756854264087,1.27993789,111370.0,111360.0,0.15096686]
[1756854265188,1.27993789,111370.0,111360.0,4.686e-05]
[1756854266075,0.90124351,111370.0,111360.0,0.00505686]
[1756854267334,0.90124351,111370.0,111360.0,0.15597686]
[1756854268121,0.55226568,111370.0,111360.0,0.15597686]
[1756854268422,0.90124351,111370.0,111360.0,0.15597686]
[1756854269230,0.55226568,111370.0,111360.0,0.33557456]
[1756854269431,0.37268411,111370.0,111360.0,0.33557456]
[1756854269667,0.90124351,111370.0,111360.0,0.33557456]
[1756854270453,0.37268411,111370.0,111360.0,0.33557456]
[1756854270653,0.90124351,111370.0,111360.0,0.33557456]
[1756854271289,0.72166194,111370.0,111360.0,0.33557456]
[1756854271487,0.03268411,111370.0,111360.0,1.05815022]
[1756854271687,0.001,111370.0,111360.0,0.70917239]
[1756854272053,0.341,111370.0,111360.0,0.70917239]
[1756854281426,0.341,111370.0,111360.0,0.36019456]
[1756854281611,0.341,111370.0,111360.0,0.70917239]
[1756854283005,0.341,111370.0,111360.0,0.36019456]
[1756854291024,0.68997783,111370.0,111360.0,0.18465456]
[1756854291229,0.68997783,111370.0,111360.0,0.33549456]
[1756854291743,0.68997783,111370.0,111360.0,0.18465456]
[1756854292098,0.68997783,111370.0,111360.0,0.15088686]
[1756854292099,1.27754209,111370.0,111360.0,0.15088686]
[1756854292310,1.27525256,111370.0,111360.0,0.15088686]
[1756854292461,1.27993733,111370.0,111360.0,0.15088686]
[1756854292671,0.90124295,111370.0,111360.0,0.33048456]
[1756854297739,0.90124295,111370.0,111360.0,0.15088686]
[1756854300667,0.90124295,111370.0,111360.0,0.33048456]
[1756854300951,0.72166138,111370.0,111360.0,0.33370456]
[1756854301224,0.90124295,111370.0,111360.0,0.33370456]
[1756854301433,0.90124295,111370.0,111360.0,0.33048456]
[1756854301674,0.90124295,111370.0,111360.0,0.33370456]
[1756854302115,0.90124295,111370.0,111360.0,0.15088686]
[1756854302362,1.30922564,111370.0,111360.0,4.686e-05]
[1756854302570,1.30922564,111370.0,111360.0,0.15088686]
[1756854302986,1.40114163,111370.0,111360.0,4.686e-05]
[1756854303211,1.90095946,111370.0,111360.0,4.686e-05]
[1756854303429,1.55198163,111370.0,111360.0,4.686e-05]
[1756854303834,0.85402597,111370.0,111360.0,4.686e-05]
[1756854304043,1.55198163,111370.0,111360.0,4.686e-05]
[1756854310073,0.52034959,111360.0,111350.0,0.15084]
[1756854310273,0.17961383,111350.0,111340.0,0.00322]
[1756854310484,0.17962996,111340.0,111330.0,0.25492547]
[1756854310686,0.87758562,111340.0,111330.0,0.40834547]
[1756854310890,0.90458818,111340.0,111330.0,0.25706547]
[1756854311075,0.90458818,111340.0,111330.0,0.40834547]
[1756854312208,0.90458818,111340.0,111330.0,0.25906547]
[1756854312330,0.90458818,111340.0,111330.0,0.41038547]
[1756854312778,0.90458818,111340.0,111330.0,0.26106547]
[1756854313003,0.90458818,111340.0,111330.0,0.41234547]
[1756854313708,0.91347971,111340.0,111330.0,0.26106547]
[1756854313939,0.91347971,111340.0,111330.0,0.41234547]
[1756854315749,0.91347971,111340.0,111330.0,0.06728]
[1756854315964,0.9181662,111340.0,111330.0,0.15524]
[1756854316394,0.9181662,111340.0,111330.0,0.15831]
[1756854316611,0.9181662,111340.0,111330.0,0.15631]
[1756854316739,0.9181662,111340.0,111330.0,0.15731]
[1756854316942,0.22021054,111340.0,111330.0,0.15945]
[1756854317142,0.9181662,111340.0,111330.0,0.15745]
[1756854317556,0.9181662,111340.0,111330.0,0.15845]
[1756854320037,0.22021054,111340.0,111330.0,0.15845]
[1756854320246,0.9181662,111340.0,111330.0,0.15845]
[1756854323603,0.56934088,111340.0,111330.0,0.15845]
[1756854332013,0.56934088,111340.0,111330.0,0.15631]
[1756854333975,0.56934088,111340.0,111330.0,0.15845]
[1756854335675,0.56934088,111340.0,111330.0,0.00721]
[1756854335875,0.56934088,111340.0,111330.0,0.15817]
[1756854338259,0.22021054,111340.0,111330.0,0.33781609]
[1756854338662,0.56934088,111340.0,111330.0,0.33781609]
[1756854339539,0.22021054,111340.0,111330.0,0.33781609]
[1756854339741,0.56934088,111340.0,111330.0,0.15817]
[1756854340574,0.04058058,111340.0,111330.0,0.33781609]
[1756854340782,0.22021054,111340.0,111330.0,0.33781609]
[1756854340962,0.56934088,111340.0,111330.0,0.33781609]
[1756854341170,0.38971092,111340.0,111330.0,0.33781609]
[1756854341525,0.56934088,111340.0,111330.0,0.33781609]
[1756854343277,0.38971092,111340.0,111330.0,0.33781609]
[1756854343479,0.04058058,111340.0,111330.0,0.33781609]
[1756854343647,0.22021054,111340.0,111330.0,0.33781609]
[1756854345445,0.04058058,111340.0,111330.0,0.33781609]
[1756854346558,0.22021054,111340.0,111330.0,0.33781609]
[1756854348228,0.56934088,111340.0,111330.0,0.33781609]
[1756854349260,0.56934088,111340.0,111330.0,0.15817]
[1756854349934,0.56934088,111340.0,111330.0,0.00507]
[1756854350101,0.56934088,111340.0,111330.0,0.15288]
[1756854352188,0.22021054,111340.0,111330.0,0.15288]
[1756854352363,0.62834574,111340.0,111330.0,0.002]
[1756854352539,0.62834574,111340.0,111330.0,0.15288]
[1756854353292,0.62834574,111340.0,111330.0,0.15188]
[1756854353841,0.51964609,111330.0,111320.0,0.1829088]
[1756854354047,0.86877643,111330.0,111320.0,0.3358688]
[1756854354500,0.89578211,111330.0,111320.0,0.3358688]
[1756854355049,0.89582889,111330.0,111320.0,0.3358688]
[1756854355902,0.89582889,111330.0,111320.0,0.1849888]
[1756854356052,0.89582889,111330.0,111320.0,0.15513]
[1756854356455,0.89582889,111330.0,111320.0,0.15188]
[1756854356699,0.89582889,111330.0,111320.0,0.15288]
[1756854356900,0.89582889,111330.0,111320.0,0.15613]
[1756854358716,0.89582889,111330.0,111320.0,0.002]
[1756854358717,1.30396409,111330.0,111320.0,0.002]
[1756854358924,1.30396409,111330.0,111320.0,0.15288]
[1756854359856,1.30396409,111330.0,111320.0,0.15188]
[1756854360033,0.95483375,111330.0,111320.0,0.15088]
[1756854361136,0.17966223,111320.0,111310.0,0.06657]
[1756854361468,0.55808088,111320.0,111310.0,0.21761]
[1756854361673,0.55808088,111320.0,111310.0,0.06657]
[1756854361962,0.55808088,111320.0,111310.0,0.21757]
[1756854362165,0.55808088,111320.0,111310.0,0.21769]
[1756854362166,0.61480644,111320.0,111310.0,0.21769]
[1756854362365,0.61480644,111320.0,111310.0,0.001]
[1756854362576,0.61949383,111320.0,111310.0,0.15745]
[1756854363205,0.61949383,111320.0,111310.0,0.15212]
[1756854363339,1.05140982,111320.0,111310.0,0.15212]
[1756854363743,1.05140982,111320.0,111310.0,0.15312]
[1756854364747,0.70227948,111320.0,111310.0,0.15637]
[1756854364969,0.67256293,111320.0,111310.0,0.15845]
[1756854365185,1.02169327,111320.0,111310.0,0.002]
[1756854365387,1.02169327,111320.0,111310.0,0.15657]
[1756854366232,1.02169327,111320.0,111310.0,0.15557]
[1756854366655,1.02169327,111320.0,111310.0,0.15457]
[1756854369390,1.02169327,111320.0,111310.0,0.00325]
[1756854369593,1.17297327,111320.0,111310.0,0.00325]
[1756854370917,0.82384293,111320.0,111310.0,0.00325]
[1756854371126,1.17297327,111320.0,111310.0,0.00325]
[1756854371334,1.17297327,111320.0,111310.0,0.00522]
[1756854371513,1.02169327,111320.0,111310.0,0.00325]
[1756854372097,0.17967837,111310.0,111300.0,0.15469]
[1756854372304,0.52880871,111310.0,111300.0,0.15666]
[1756854372686,0.555821,111310.0,111300.0,0.15666]
[1756854373560,0.555821,111310.0,111300.0,0.15766]
[1756854374320,0.555821,111310.0,111300.0,0.15866]
[1756854375048,0.555821,111310.0,111300.0,0.33835451]
[1756854375261,0.20669066,111310.0,111300.0,0.33835451]
[1756854375493,0.555821,111310.0,111300.0,0.33835451]
[1756854381876,0.02701229,111310.0,111300.0,0.33835451]
[1756854382826,0.20669066,111310.0,111300.0,0.33835451]
[1756854383574,0.55593018,111310.0,111300.0,0.33835451]
[1756854383791,0.37625181,111310.0,111300.0,0.33835451]
[1756854384379,0.55593018,111310.0,111300.0,0.33835451]
[1756854384825,0.37625181,111310.0,111300.0,0.33835451]
[1756854385247,0.55593018,111310.0,111300.0,0.33835451]
[1756854386356,0.37625181,111310.0,111300.0,0.33835451]
[1756854386811,0.02701229,111310.0,111300.0,0.33835451]
[1756854387027,0.37625181,111310.0,111300.0,0.33835451]
[1756854388188,0.02701229,111310.0,111300.0,0.68759403]
[1756854388368,0.02701229,111310.0,111300.0,0.33835451]
[1756854388640,0.37625181,111310.0,111300.0,0.33835451]
[1756854390236,0.02701229,111310.0,111300.0,0.68759403]
[1756854390442,0.87358914,111320.0,111310.0,0.17967837]
[1756854390675,0.90059842,111320.0,111310.0,0.17967837]
[1756854390886,0.90059842,111320.0,111310.0,0.18461837]
[1756854393504,0.90059842,111320.0,111300.0,0.18009451]
[1756854393505,1.24983794,111320.0,111300.0,0.18009451]
[1756854393733,0.86891789,111310.0,111300.0,0.18306451]
[1756854393954,0.86891789,111310.0,111300.0,0.33402451]
[1756854394154,0.86891789,111310.0,111300.0,0.33599451]
[1756854394857,0.68923952,111310.0,111300.0,0.33599451]
[1756854396340,0.68923952,111310.0,111300.0,0.33699451]
[1756854396783,1.21815741,111310.0,111300.0,0.0024]
[1756854397011,0.86891789,111310.0,111300.0,0.15336]
[1756854397199,0.89593018,111310.0,111300.0,0.15336]
[1756854398970,0.89593018,111310.0,111300.0,0.0024]
[1756854399197,0.89593018,111310.0,111300.0,0.15336]
[1756854402729,0.92521849,111310.0,111300.0,0.15336]
[1756854403822,0.92521849,111310.0,111300.0,0.1565]
[1756854404118,0.57597897,111310.0,111300.0,0.15857]
[1756854404321,0.92521849,111310.0,111300.0,0.1565]
[1756854406399,0.92521849,111310.0,111300.0,0.15336]
[1756854407035,0.92521849,111310.0,111300.0,0.1565]
[1756854407880,0.57597897,111310.0,111300.0,0.1565]
[1756854408064,0.92521849,111310.0,111300.0,0.1565]
[1756854414855,0.92521849,111310.0,111300.0,0.00554]
[1756854415156,0.92521849,111310.0,111300.0,0.1565]
[1756854416184,0.92521849,111310.0,111300.0,0.0024]
[1756854416394,1.30390358,111310.0,111300.0,0.15336]
[1756854417217,1.30390358,111310.0,111300.0,0.15236]
[1756854418333,1.45486358,111310.0,111300.0,0.15236]
[1756854419430,1.93637446,111310.0,111300.0,0.0014]
[1756854419636,1.96065273,111310.0,111300.0,0.0024]
[1756854419851,1.61773173,111310.0,111300.0,0.0024]
[1756854420063,2.08029125,111310.0,111300.0,0.0024]
[1756854420278,2.19714856,111310.0,111300.0,0.0004]
[1756854420479,2.10523257,111310.0,111300.0,0.0004]
[1756854420685,1.70599305,111310.0,111300.0,0.0004]
[1756854420892,1.73026445,111310.0,111300.0,0.0004]
[1756854421766,1.7302506,111310.0,111300.0,0.0004]
[1756854421989,1.77560111,111310.0,111300.0,0.0004]
[1756854422183,1.74323193,111310.0,111300.0,0.0004]
[1756854422387,1.72939537,111310.0,111300.0,0.0004]
[1756854422595,1.73139537,111310.0,111300.0,0.0004]
[1756854425014,1.73129449,111310.0,111300.0,0.0004]
[1756854425411,1.72497597,111310.0,111300.0,0.0004]
[1756854427534,1.70076093,111310.0,111300.0,0.0004]
[1756854429608,2.05000045,111310.0,111300.0,0.0004]
[1756854432195,2.07421549,111310.0,111300.0,0.0004]
[1756854433380,2.08051604,111310.0,111300.0,0.0004]
[1756854436168,2.11288522,111310.0,111300.0,0.0004]
[1756854439357,2.12968957,111310.0,111300.0,0.0004]
[1756854440402,2.10547453,111310.0,111300.0,0.0004]
[1756854442586,2.15395014,111310.0,111300.0,0.0004]
[1756854443626,1.80529126,111310.0,111300.0,0.0004]
[1756854445397,1.77292208,111310.0,111300.0,0.0004]
[1756854445982,3.77292208,111310.0,111300.0,0.0004]
[1756854446410,3.77292208,111310.0,111300.0,0.00565]
[1756854447228,3.72757157,111310.0,111300.0,0.00565]
[1756854448372,3.67909596,111310.0,111300.0,0.00565]
[1756854449516,3.74334177,111310.0,111300.0,0.00565]
[1756854450701,3.59238177,111310.0,111300.0,0.00565]
[1756854450923,3.74334177,111310.0,111300.0,0.00565]
[1756854451654,3.59238177,111310.0,111300.0,0.00565]
[1756854451844,3.74334177,111310.0,111300.0,0.0036]
[1756854453232,3.74340652,111310.0,111300.0,0.0036]
[1756854453375,3.67916071,111310.0,111300.0,0.0036]
[1756854454862,3.69777554,111310.0,111300.0,0.0036]
[1756854455308,3.67916071,111310.0,111300.0,0.00565]
[1756854456729,3.52820071,111310.0,111300.0,0.00565]
[1756854456957,3.67916071,111310.0,111300.0,0.00565]
[1756854457648,2.82914103,111310.0,111300.0,0.00565]
[1756854457861,3.34876997,111310.0,111300.0,0.00565]
[1756854458344,3.69829981,111310.0,111300.0,0.00565]
[1756854458554,3.76568545,111310.0,111300.0,0.00565]
[1756854459113,3.61472545,111310.0,111300.0,0.00565]
[1756854459254,3.38115697,111310.0,111300.0,0.00565]
[1756854459874,3.23019697,111310.0,111300.0,0.00565]
[1756854460078,3.3325323,111310.0,111300.0,0.00565]
[1756854460911,2.98300246,111310.0,111300.0,0.00565]
[1756854461149,3.42444829,111310.0,111300.0,0.00565]
[1756854461276,3.3325323,111310.0,111300.0,0.00565]
[1756854462332,3.35681373,111310.0,111300.0,0.00565]
[1756854462580,3.20589373,111310.0,111300.0,0.00565]
[1756854462724,3.35681373,111310.0,111300.0,0.00565]
[1756854463102,3.1556666,111310.0,111300.0,0.00565]
[1756854463226,3.25102995,111310.0,111300.0,0.00565]
[1756854463628,3.18770995,111310.0,111300.0,0.00565]
[1756854464262,3.16342852,111310.0,111300.0,0.00565]
[1756854467412,3.01250852,111310.0,111300.0,0.00565]
[1756854467669,3.16342852,111310.0,111300.0,0.00565]
[1756854469444,3.19287409,111310.0,111300.0,0.00565]
[1756854476267,3.2221624,111310.0,111300.0,0.0036]
[1756854476476,3.57169224,111310.0,111300.0,0.0004]
[1756854479817,3.57169224,111310.0,111300.0,0.00333]
[1756854481227,3.2221624,111310.0,111300.0,0.00541]
[1756854484606,3.2221624,111310.0,111300.0,0.00333]
[1756854484802,3.2221624,111310.0,111300.0,0.0004]
[1756854485125,3.57169224,111310.0,111300.0,0.0004]
[1756854486208,3.57169224,111310.0,111300.0,0.00333]
[1756854487041,3.57169224,111310.0,111300.0,0.0004]
[1756854490128,3.59597367,111310.0,111300.0,0.0004]
[1756854490513,3.71515233,111310.0,111300.0,0.0004]
[1756854491945,3.76440423,111310.0,111300.0,0.0004]
[1756854496114,3.76432423,111310.0,111300.0,0.0004]
[1756854496321,3.58403866,111310.0,111300.0,0.0055]
[1756854496535,3.73487866,111310.0,111300.0,0.0055]
[1756854496779,3.73487866,111310.0,111300.0,0.00349]
[1756854496953,3.76432423,111310.0,111300.0,0.00349]
[1756854499095,3.76432423,111310.0,111300.0,0.0004]
[1756854500376,3.76431072,111310.0,111300.0,0.0004]
[1756854501973,3.76431072,111310.0,111300.0,0.00349]
[1756854502545,3.76431072,111310.0,111300.0,0.0055]
[1756854504604,3.76431072,111310.0,111300.0,0.00349]
[1756854505548,3.76420416,111310.0,111300.0,0.00349]
[1756854507411,3.76420416,111310.0,111300.0,0.0004]
[1756854507625,4.11368072,111310.0,111300.0,0.0004]
[1756854514267,4.08939929,111310.0,111300.0,0.0004]
[1756854514474,1.64779689,111300.0,111290.0,0.00272804]
[1756854514676,1.93416113,111300.0,111290.0,0.00272804]
[1756854514889,1.93416113,111300.0,111290.0,0.00473804]
[1756854515087,1.93885013,111300.0,111290.0,0.00473804]
[1756854515209,1.96587033,111300.0,111290.0,0.00473804]
[1756854515825,1.96687033,111300.0,111290.0,0.00473804]
[1756854516901,1.96787033,111300.0,111290.0,0.00473804]
[1756854517240,1.97419371,111300.0,111290.0,0.00473804]
[1756854519053,1.97452371,111300.0,111290.0,0.00473804]
[1756854519459,1.97452371,111300.0,111280.0,0.01358]
[1756854519460,0.51971066,111290.0,111280.0,0.01358]
[1756854519678,1.53948568,111290.0,111280.0,0.01358]
[1756854519890,1.5604245,111290.0,111280.0,0.01573]
[1756854520246,1.5841745,111290.0,111280.0,0.01573]
[1756854520562,1.5841745,111290.0,111280.0,0.01673]
[1756854520773,1.58422126,111290.0,111280.0,0.01673]
[1756854523402,1.67646725,111290.0,111280.0,0.01673]
[1756854523611,1.70706744,111290.0,111280.0,0.0114]
[1756854523907,1.67762187,111290.0,111280.0,0.0114]
[1756854524271,1.67762196,111290.0,111280.0,0.01458]
[1756854524457,1.67762196,111290.0,111280.0,0.01358]
[1756854525049,1.67762196,111290.0,111280.0,0.01573]
[1756854525306,1.67862196,111290.0,111280.0,0.01358]
[1756854526004,1.67958196,111290.0,111280.0,0.01573]
[1756854527320,1.67958196,111290.0,111280.0,0.01358]
[1756854529706,1.70900934,111290.0,111280.0,0.01358]
[1756854530207,1.75002708,111290.0,111280.0,0.0104]
[1756854530408,1.75002708,111290.0,111280.0,0.01358]
[1756854530617,1.75002708,111290.0,111280.0,0.0104]
[1756854531196,1.75002274,111290.0,111280.0,0.0104]
[1756854531737,1.59926274,111290.0,111280.0,0.01358]
[1756854531941,1.75002274,111290.0,111280.0,0.01573]
[1756854536308,1.59926274,111290.0,111280.0,0.01573]
[1756854536511,1.75002274,111290.0,111280.0,0.01573]
[1756854538933,1.75002274,111290.0,111280.0,0.01358]
[1756854540298,1.50701675,111290.0,111280.0,0.01573]
[1756854540529,1.62834937,111290.0,111280.0,0.01573]
[1756854540731,0.92939625,111290.0,111280.0,0.01573]
[1756854540857,1.62834937,111290.0,111280.0,0.01573]
[1756854541058,1.62834916,111290.0,111280.0,0.01573]
[1756854541297,1.7094083,111290.0,111280.0,0.01573]
[1756854542070,1.5586483,111290.0,111280.0,0.01573]
[1756854542213,1.68011999,111290.0,111280.0,0.01573]
[1756854543948,1.6801209,111290.0,111280.0,0.01573]
[1756854547291,1.5293609,111290.0,111280.0,0.01573]
[1756854547485,1.59902176,111290.0,111280.0,0.01573]